[Event "36th German Seniors-ch-65 2024"]
[Site "Bad Wildungen"]
[Date "2024.08.25"]
[Round "3.20"]
[White "Kannenberg, Karl-Heinz"]
[Black "Schmidt, Joerg"]
[Result "1-0"]
[ECO "A48"]
[WhiteElo "2121"]
[BlackElo "1995"]
[Annotator "RC"]
[PlyCount "64"]
[EventDate "2024.08.22"]
[EventType "swiss"]
[EventCountry "GER"]
[SourceTitle "playchess.com"]
[Source "ChessBase"]
[SourceQuality "1"]
[TimeControl "40/5400+30:1800+30"]

1. d4 {[%emt 0:00:03]} c5 {[%emt 0:00:23]} 2. e3 {[%emt 0:00:37]} g6 {[%emt 0:00:48]} 3. Nf3 {[%emt 0:00:55]} Bg7 {[%emt 0:00:27]} 4. Be2 {[%emt 0:00:18]} Nf6 {[%emt 0:02:16]} 5. O-O {[%emt 0:01:15]} cxd4 {[%emt 0:00:38]} 6. exd4 {[%emt 0:00:27]} O-O {[%emt 0:01:18]} 7. c3 {[%emt 0:01:50]} d6 {[%emt 0:01:44]} 8. Re1 {[%emt 0:03:08]} Bd7 {[%emt 0:04:32]} 9. Nbd2 {[%emt 0:03:06]} Nc6 {[%emt 0:03:01]} 10. Bf1 {[%emt 0:01:16]} Re8 {[%emt 0:03:25]} 11. Nc4 {[%emt 0:01:29]} b5 {[%emt 0:02:21]} 12. Ne3 {[%emt 0:01:18]} Rb8 {[%emt 0:04:02]} 13. d5 {[%emt 1:21:18]} Na5 14. b4 {[%emt 0:00:00]} Nb7 {[%emt 0:10:16]} 15. Nd4 {[%emt 0:00:00]} Qb6 {[%emt 0:00:40]} 16. Bb2 {[%emt 0:00:00]} Nd8 {[%emt 0:05:24]} 17. a3 {[%emt 0:00:00]} a6 {[%emt 0:06:05]} 18. c4 {[%emt 0:00:00]} e5 {[%emt 0:06:13]} 19. dxe6 {[%emt 0:00:00]} Nxe6 {[%emt 0:00:54]} 20. Nxe6 {[%emt 0:00:00]} Bxe6 {[%emt 0:01:27]} 21. Rc1 {[%emt 0:00:00]} bxc4 {[%emt 0:11:44]} 22. Bd4 {[%emt 0:00:00]} Qd8 {[%emt 0:03:57]} 23. Nxc4 {[%emt 0:00:00]} d5 {[%emt 0:01:43]} 24. Na5 {[%emt 0:00:00]} Ra8 {[%emt 0:02:07]} 25. Rc6 {[%emt 0:00:00]} Bc8 {[%emt 0:00:43]} 26. Rxe8+ {[%emt 0:00:00]} Nxe8 {[%emt 0:00:34]} 27. Bxg7 {[%emt 0:00:00]} Nxg7 {[%emt 0:00:40]} 28. Bd3 {[%emt 0:00:00]} Ne6 {[%emt 0:02:14]} 29. Qa1 {[%emt 0:00:00]} Nf4 {[%emt 0:01:51]} 30. Qd4 {[%emt 0:00:41]} Qh4 {[%emt 0:03:23]} 31. g3 {[%emt 0:02:00]} Qg4 {[%emt 0:04:11]} 32. Rc2 {[%emt 0:02:38]} Nh3+ {[%emt 0:15:50]} 1-0

[Event "36th German Seniors-ch-65 2024"]
[Site "Bad Wildungen"]
[Date "2024.08.25"]
[Round "3.21"]
[White "Reinhold, Klaus"]
[Black "Schulz, Michael"]
[Result "1/2-1/2"]
[ECO "A80"]
[WhiteElo "2008"]
[BlackElo "2109"]
[Annotator "RC"]
[PlyCount "45"]
[EventDate "2024.08.22"]
[EventType "swiss"]
[EventCountry "GER"]
[SourceTitle "playchess.com"]
[Source "ChessBase"]
[SourceQuality "1"]
[TimeControl "40/5400+30:1800+30"]

1. d4 {[%emt 0:00:06]} f5 {[%emt 0:00:09]} 2. Bg5 {[%emt 0:00:53]} g6 {[%emt 0:00:22]} 3. Nc3 {[%emt 0:01:01]} Bg7 {[%emt 0:00:18]} 4. h4 {[%emt 0:00:37]} h6 {[%emt 0:00:35]} 5. Bf4 {[%emt 0:00:30]} Nf6 {[%emt 0:00:32]} 6. e3 {[%emt 0:03:26]} d6 {[%emt 0:03:35]} 7. Qf3 {[%emt 0:05:15]} c6 {[%emt 0:01:53]} 8. Qg3 {[%emt 0:11:48]} Ng4 {[%emt 0:05:32]} 9. f3 {[%emt 0:29:33]} e5 {[%emt 0:02:01]} 10. fxg4 {[%emt 0:00:09]} exf4 {[%emt 0:02:46]} 11. Qxf4 {[%emt 0:00:38]} Qe7 {[%emt 0:08:51]} 12. Bd3 {[%emt 0:03:38]} g5 {[%emt 0:00:41]} 13. hxg5 {[%emt 0:00:18]} hxg5 {[%emt 0:00:05]} 14. Rxh8+ {[%emt 0:00:10]} Bxh8 {[%emt 0:00:04]} 15. Qh2 {[%emt 0:05:43]} Qxe3+ {[%emt 0:07:14]} 16. Nge2 {[%emt 0:00:18]} Bxd4 {[%emt 0:00:34]} 17. Qxd6 {[%emt 0:00:56]} Qf2+ {[%emt 0:02:46]} 18. Kd1 {[%emt 0:02:55]} Be3 {[%emt 0:01:49]} 19. Qe5+ {[%emt 0:06:32]} Kd8 {[%emt 0:00:45]} 20. Qf6+ {[%emt 0:00:32]} Kc7 {[%emt 0:00:12]} 21. Qe5+ {[%emt 0:00:12]} Kd8 {[%emt 0:00:18]} 22. Qf6+ {[%emt 0:02:18]} Kc7 {[%emt 0:00:14]} 23. Qe5+ {[%emt 0:24:32]} 1/2-1/2

[Event "36th German Seniors-ch-65 2024"]
[Site "Bad Wildungen"]
[Date "2024.08.25"]
[Round "3.22"]
[White "Weiss, Matthias"]
[Black "Rosen, Willy"]
[Result "0-1"]
[ECO "B14"]
[WhiteElo "2060"]
[BlackElo "2091"]
[Annotator "RC"]
[PlyCount "109"]
[EventDate "2024.08.22"]
[EventType "swiss"]
[EventCountry "GER"]
[SourceTitle "playchess.com"]
[Source "ChessBase"]
[SourceQuality "1"]
[TimeControl "40/5400+30:1800+30"]

1. e4 {[%emt 0:00:03]} c5 {[%emt 0:00:16]} 2. c3 {[%emt 0:00:12]} g6 {[%emt 0:00:10]} 3. d4 {[%emt 0:00:39]} cxd4 {[%emt 0:00:07]} 4. cxd4 {[%emt 0:00:07]} d5 {[%emt 0:00:07]} 5. exd5 {[%emt 0:04:49]} Nf6 {[%emt 0:00:09]} 6. Nc3 {[%emt 0:00:35]} Nxd5 {[%emt 0:00:22]} 7. Bc4 {[%emt 0:01:08]} Nb6 {[%emt 0:00:19]} 8. Bb3 {[%emt 0:02:46]} Bg7 {[%emt 0:00:35]} 9. Be3 {[%emt 0:00:57]} O-O {[%emt 0:01:01]} 10. h3 {[%emt 0:01:33]} Nc6 {[%emt 0:00:20]} 11. Nf3 {[%emt 0:00:27]} Na5 {[%emt 0:01:10]} 12. O-O {[%emt 0:12:52]} Nxb3 {[%emt 0:00:13]} 13. Qxb3 {[%emt 0:00:26]} Be6 {[%emt 0:02:16]} 14. Qd1 {[%emt 0:03:51]} Nc4 {[%emt 0:03:39]} 15. b3 {[%emt 0:02:39]} Nxe3 {[%emt 0:01:08]} 16. fxe3 {[%emt 0:00:02]} Qa5 {[%emt 0:04:42]} 17. Rc1 {[%emt 0:02:19]} Rac8 {[%emt 0:01:24]} 18. Qd2 {[%emt 0:02:38]} b6 {[%emt 0:05:47]} 19. Ne4 {[%emt 0:03:34]} Qxd2 {[%emt 0:00:26]} 20. Nexd2 {[%emt 0:02:14]} Bd5 {[%emt 0:06:31]} 21. Nc4 {[%emt 0:06:41]} Rfd8 {[%emt 0:07:02]} 22. Kf2 {[%emt 0:01:11]} f6 {[%emt 0:07:47]} 23. Rfd1 {[%emt 0:00:23]} Rc6 {[%emt 0:01:05]} 24. Nb2 {[%emt 0:01:34]} Rdc8 {[%emt 0:00:58]} 25. Rxc6 {[%emt 0:00:22]} Rxc6 {[%emt 0:00:10]} 26. Rd2 {[%emt 0:00:37]} h5 {[%emt 0:04:26]} 27. Nd3 {[%emt 0:01:18]} a5 {[%emt 0:00:22]} 28. Rb2 {[%emt 0:11:34]} Be4 {[%emt 0:05:00]} 29. Nf4 {[%emt 0:02:30]} e5 {[%emt 0:04:44]} 30. dxe5 {[%emt 0:09:07]} fxe5 {[%emt 0:00:04]} 31. Ne2 {[%emt 0:01:51]} Bf6 {[%emt 0:11:09]} 32. Rd2 {[%emt 0:01:10]} Kf7 {[%emt 0:00:19]} 33. Ng3 {[%emt 0:00:46]} Bb1 {[%emt 0:02:03]} 34. Rb2 {[%emt 0:04:45]} Bd3 {[%emt 0:01:48]} 35. Rd2 {[%emt 0:00:53]} e4 {[%emt 0:08:33]} 36. Nd4 {[%emt 0:00:56]} Rc1 {[%emt 0:00:23]} 37. Nge2 {[%emt 0:00:39]} Ra1 {[%emt 0:04:20]} 38. g3 {[%emt 0:03:37]} g5 {[%emt 0:07:15]} 39. Nc3 {[%emt 0:03:10]} Rf1+ {[%emt 0:11:50]} 40. Kg2 Rc1 41. Nd5 Bxd4 42. exd4 b5 {[%emt 0:29:44]} 43. Ne3 {[%emt 0:31:45]} b4 {[%emt 0:02:16]} 44. Rf2+ Ke6 45. Rf5 Rc2+ 46. Nxc2 Kxf5 {[%emt 0:00:00]} 47. Ne3+ {[%emt 0:00:00]} Ke6 {[%emt 0:00:00]} 48. Kf2 {[%emt 0:00:00]} Bb1 {[%emt 0:00:00]} 49. Nc4 {[%emt 0:00:00]} Bxa2 {[%emt 0:00:00]} 50. Nd2 {[%emt 0:03:44]} Kd5 {[%emt 0:00:00]} 51. Ke3 Bxb3 {[%emt 0:04:00]} 52. Nxb3 {[%emt 0:00:25]} a4 {[%emt 0:00:30]} 53. Nc5 {[%emt 0:02:42]} a3 {[%emt 0:00:30]} 54. Nb3 {[%emt 0:11:59]} a2 {[%emt 0:00:30]} 55. Ke2 {[%emt 0:00:30]} 0-1

[Event "36th German Seniors-ch-65 2024"]
[Site "Bad Wildungen"]
[Date "2024.08.26"]
[Round "4.1"]
[White "Namyslo, Holger"]
[Black "Klundt, Klaus"]
[Result "1/2-1/2"]
[ECO "B33"]
[WhiteElo "2140"]
[BlackElo "2264"]
[Annotator "RC"]
[PlyCount "34"]
[EventDate "2024.08.22"]
[EventType "swiss"]
[EventCountry "GER"]
[SourceTitle "playchess.com"]
[Source "ChessBase"]
[SourceQuality "1"]
[TimeControl "40/5400+30:1800+30"]

1. e4 {[%emt 0:00:05]} c5 {[%emt 0:00:08]} 2. Nf3 {[%emt 0:00:21]} Nc6 {[%emt 0:00:16]} 3. d4 {[%emt 0:00:13]} cxd4 {[%emt 0:00:11]} 4. Nxd4 {[%emt 0:00:06]} Nf6 {[%emt 0:00:33]} 5. Nc3 {[%emt 0:00:09]} e5 {[%emt 0:00:12]} 6. Ndb5 {[%emt 0:00:27]} d6 {[%emt 0:00:06]} 7. Bg5 {[%emt 0:00:42]} a6 {[%emt 0:00:14]} 8. Na3 {[%emt 0:00:06]} b5 {[%emt 0:00:12]} 9. Bxf6 {[%emt 0:00:08]} gxf6 {[%emt 0:00:02]} 10. Nd5 {[%emt 0:00:10]} Bg7 {[%emt 0:00:08]} 11. c3 {[%emt 0:01:02]} f5 {[%emt 0:00:34]} 12. exf5 {[%emt 0:00:12]} Bxf5 {[%emt 0:00:08]} 13. Nc2 {[%emt 0:00:08]} O-O {[%emt 0:01:16]} 14. Nce3 {[%emt 0:00:43]} Be6 {[%emt 0:00:06]} 15. Bd3 {[%emt 0:01:31]} f5 {[%emt 0:00:20]} 16. Qh5 {[%emt 0:01:32]} Qd7 {[%emt 0:00:42]} 17. Bc2 {[%emt 0:11:06]} Rae8 {[%emt 0:13:32]} 1/2-1/2

[Event "36th German Seniors-ch-65 2024"]
[Site "Bad Wildungen"]
[Date "2024.08.26"]
[Round "4.2"]
[White "Rosen, Bernd"]
[Black "Schrems, Hermann"]
[Result "0-1"]
[ECO "B23"]
[WhiteElo "2245"]
[BlackElo "2118"]
[Annotator "RC"]
[PlyCount "82"]
[EventDate "2024.08.22"]
[EventType "swiss"]
[EventCountry "GER"]
[SourceTitle "playchess.com"]
[Source "ChessBase"]
[SourceQuality "1"]
[TimeControl "40/5400+30:1800+30"]

1. e4 {[%emt 0:00:03]} c5 {[%emt 0:00:08]} 2. Nc3 {[%emt 0:00:10]} Nc6 {[%emt 0:00:07]} 3. f4 {[%emt 0:00:19]} g6 {[%emt 0:00:55]} 4. Nf3 {[%emt 0:00:15]} Bg7 {[%emt 0:00:06]} 5. a3 {[%emt 0:00:19]} d6 {[%emt 0:02:41]} 6. Bc4 {[%emt 0:01:42]} Nf6 {[%emt 0:01:05]} 7. d3 {[%emt 0:00:42]} a6 {[%emt 0:00:40]} 8. O-O {[%emt 0:01:45]} e6 {[%emt 0:05:24]} 9. Qe1 {[%emt 0:03:19]} Nd4 {[%emt 0:02:56]} 10. Nxd4 {[%emt 0:01:22]} cxd4 {[%emt 0:00:02]} 11. Ne2 {[%emt 0:00:45]} d5 {[%emt 0:00:11]} 12. exd5 {[%emt 0:02:53]} Nxd5 {[%emt 0:00:55]} 13. f5 {[%emt 0:03:59]} O-O {[%emt 0:04:37]} 14. fxg6 {[%emt 0:14:43]} hxg6 {[%emt 0:00:07]} 15. Qg3 {[%emt 0:01:22]} Qc7 {[%emt 0:07:28]} 16. Qh4 {[%emt 0:03:27]} Qe5 {[%emt 0:04:06]} 17. Bxd5 {[%emt 0:06:02]} Qxe2 {[%emt 0:00:18]} 18. Bb3 {[%emt 0:00:24]} Qe5 {[%emt 0:04:36]} 19. Bd2 {[%emt 0:05:17]} Bd7 {[%emt 0:06:28]} 20. Bb4 {[%emt 0:07:16]} Rfe8 {[%emt 0:00:44]} 21. Rae1 {[%emt 0:00:37]} Qh5 {[%emt 0:00:26]} 22. Qf4 {[%emt 0:06:01]} g5 {[%emt 0:06:10]} 23. Qg3 {[%emt 0:03:57]} a5 {[%emt 0:00:32]} 24. Bd2 {[%emt 0:02:51]} a4 {[%emt 0:00:20]} 25. Ba2 {[%emt 0:00:37]} Rac8 {[%emt 0:00:05]} 26. Bb1 {[%emt 0:09:25]} g4 {[%emt 0:02:37]} 27. Qd6 {[%emt 0:06:22]} Bc6 {[%emt 0:00:18]} 28. Rf2 {[%emt 0:00:32]} Rcd8 {[%emt 0:02:30]} 29. Qg3 {[%emt 0:02:54]} Rd5 {[%emt 0:00:59]} 30. Ba2 {[%emt 0:01:33]} Re5 {[%emt 0:04:08]} 31. Rxe5 {[%emt 0:02:06]} Bxe5 {[%emt 0:00:08]} 32. Bf4 {[%emt 0:00:16]} Bf6 {[%emt 0:00:10]} 33. h3 {[%emt 0:00:43]} Bh4 {[%emt 0:00:15]} 34. Qxg4+ {[%emt 0:00:23]} Qxg4 {[%emt 0:00:01]} 35. hxg4 {[%emt 0:00:07]} Bxf2+ {[%emt 0:00:08]} 36. Kxf2 {[%emt 0:00:03]} e5 {[%emt 0:00:17]} 37. Bh6 {[%emt 0:03:13]} Kh7 {[%emt 0:01:03]} 38. Bd2 {[%emt 0:02:01]} Kg6 {[%emt 0:00:06]} 39. c3 {[%emt 0:01:20]} Rh8 {[%emt 0:03:06]} 40. cxd4 {[%emt 0:02:26]} exd4 {[%emt 0:00:02]} 41. Bf4 {[%emt 0:30:58]} Rh1 {[%emt 0:30:06]} 0-1

[Event "36th German Seniors-ch-65 2024"]
[Site "Bad Wildungen"]
[Date "2024.08.26"]
[Round "4.3"]
[White "Dekan, Hans"]
[Black "Buchal, Stephan"]
[Result "1/2-1/2"]
[ECO "B07"]
[WhiteElo "2079"]
[BlackElo "2215"]
[Annotator "RC"]
[PlyCount "73"]
[EventDate "2024.08.22"]
[EventType "swiss"]
[EventCountry "GER"]
[SourceTitle "playchess.com"]
[Source "ChessBase"]
[SourceQuality "1"]
[TimeControl "40/5400+30:1800+30"]

1. e4 {[%emt 0:00:04]} d6 {[%emt 0:00:23]} 2. d4 {[%emt 0:00:21]} Nf6 {[%emt 0:00:19]} 3. Nc3 {[%emt 0:00:51]} g6 {[%emt 0:00:18]} 4. Be2 {[%emt 0:03:40]} Bg7 {[%emt 0:00:33]} 5. Be3 {[%emt 0:00:20]} c6 {[%emt 0:00:41]} 6. h4 {[%emt 0:07:21]} h5 {[%emt 0:07:25]} 7. f3 {[%emt 0:00:30]} Qc7 {[%emt 0:06:38]} 8. Nh3 {[%emt 0:03:24]} Bxh3 {[%emt 0:00:32]} 9. Rxh3 {[%emt 0:00:10]} Nbd7 {[%emt 0:06:20]} 10. Qd2 {[%emt 0:07:30]} b5 {[%emt 0:02:20]} 11. a3 {[%emt 0:04:43]} a6 {[%emt 0:08:58]} 12. Kf2 {[%emt 0:14:02]} c5 {[%emt 0:06:22]} 13. dxc5 {[%emt 0:04:58]} Nxc5 {[%emt 0:05:21]} 14. Rhh1 {[%emt 0:15:27]} Rc8 {[%emt 0:00:51]} 15. Rac1 {[%emt 0:00:58]} Ng4+ {[%emt 0:01:01]} 16. Kf1 {[%emt 0:02:38]} Nxe3+ {[%emt 0:06:57]} 17. Qxe3 {[%emt 0:00:06]} Qb7 {[%emt 0:12:02]} 18. Rb1 {[%emt 0:11:36]} Ne6 {[%emt 0:04:13]} 19. f4 {[%emt 0:05:47]} Bd4 {[%emt 0:08:02]} 20. Qf3 {[%emt 0:01:29]} Bxc3 {[%emt 0:04:15]} 21. bxc3 {[%emt 0:00:06]} Nc5 {[%emt 0:01:17]} 22. Bd3 {[%emt 0:02:28]} Nxd3 {[%emt 0:01:47]} 23. Qxd3 {[%emt 0:00:18]} Qc6 {[%emt 0:00:35]} 24. Rh3 {[%emt 0:00:22]} O-O {[%emt 0:04:19]} 25. f5 {[%emt 0:01:34]} Qc4 {[%emt 0:00:38]} 26. Ke2 {[%emt 0:01:33]} Kg7 {[%emt 0:00:28]} 27. Rg3 {[%emt 0:03:23]} Rc5 {[%emt 0:01:52]} 28. Kd2 {[%emt 0:01:22]} Re5 {[%emt 0:05:44]} 29. Rb4 {[%emt 0:01:14]} Qc5 {[%emt 0:00:07]} 30. Qf3 {[%emt 0:01:30]} d5 {[%emt 0:00:47]} 31. fxg6 {[%emt 0:02:42]} fxg6 {[%emt 0:01:33]} 32. Rxg6+ {[%emt 0:00:08]} Kxg6 {[%emt 0:00:02]} 33. Qxf8 {[%emt 0:00:06]} dxe4 {[%emt 0:00:14]} 34. Qg8+ {[%emt 0:01:50]} Kf6 {[%emt 0:00:34]} 35. Qf8+ {[%emt 0:01:20]} Kg6 {[%emt 0:00:07]} 36. Qg8+ {[%emt 0:00:07]} Kf6 {[%emt 0:00:04]} 37. Qf8+ {[%emt 0:00:04]} 1/2-1/2

[Event "36th German Seniors-ch-65 2024"]
[Site "Bad Wildungen"]
[Date "2024.08.26"]
[Round "4.4"]
[White "Kaeding, Rainer"]
[Black "Zimmermann, Rolf"]
[Result "1/2-1/2"]
[ECO "D53"]
[WhiteElo "2116"]
[BlackElo "2107"]
[Annotator "RC"]
[PlyCount "32"]
[EventDate "2024.08.22"]
[EventType "swiss"]
[EventCountry "GER"]
[SourceTitle "playchess.com"]
[Source "ChessBase"]
[SourceQuality "1"]
[TimeControl "40/5400+30:1800+30"]

1. d4 {[%emt 0:00:09]} d5 {[%emt 0:00:31]} 2. c4 {[%emt 0:00:08]} e6 {[%emt 0:00:08]} 3. Nc3 {[%emt 0:00:19]} Nf6 {[%emt 0:01:01]} 4. Bg5 {[%emt 0:00:32]} Be7 {[%emt 0:00:25]} 5. cxd5 {[%emt 0:00:20]} Nxd5 {[%emt 0:00:54]} 6. Bxe7 {[%emt 0:01:32]} Qxe7 {[%emt 0:00:39]} 7. Nf3 {[%emt 0:03:45]} Nxc3 {[%emt 0:08:03]} 8. bxc3 {[%emt 0:00:12]} c5 {[%emt 0:00:18]} 9. e3 {[%emt 0:01:17]} O-O {[%emt 0:01:27]} 10. Bd3 {[%emt 0:02:47]} b6 {[%emt 0:09:55]} 11. Qc2 {[%emt 0:09:02]} g6 {[%emt 0:09:33]} 12. O-O {[%emt 0:09:55]} Bb7 {[%emt 0:02:32]} 13. Ne5 {[%emt 0:03:16]} Nc6 {[%emt 0:03:48]} 14. f4 {[%emt 0:02:32]} Rac8 {[%emt 0:01:10]} 15. Nxc6 {[%emt 0:08:26]} Bxc6 {[%emt 0:00:38]} 16. Qb2 {[%emt 0:00:55]} cxd4 {[%emt 0:05:17]} 1/2-1/2

[Event "36th German Seniors-ch-65 2024"]
[Site "Bad Wildungen"]
[Date "2024.08.26"]
[Round "4.5"]
[White "Koehler, Gerhard"]
[Black "Matthey, Harald"]
[Result "1-0"]
[ECO "A36"]
[WhiteElo "2210"]
[BlackElo "2062"]
[Annotator "RC"]
[PlyCount "75"]
[EventDate "2024.08.22"]
[EventType "swiss"]
[EventCountry "GER"]
[SourceTitle "playchess.com"]
[Source "ChessBase"]
[SourceQuality "1"]
[TimeControl "40/5400+30:1800+30"]

1. c4 {[%emt 0:00:03]} c5 {[%emt 0:00:10]} 2. g3 {[%emt 0:00:27]} g6 {[%emt 0:00:12]} 3. Bg2 {[%emt 0:00:15]} Bg7 {[%emt 0:00:12]} 4. Nc3 {[%emt 0:00:13]} Nc6 {[%emt 0:00:26]} 5. a3 {[%emt 0:00:22]} e6 {[%emt 0:04:34]} 6. d3 {[%emt 0:06:26]} Nge7 {[%emt 0:00:16]} 7. e4 {[%emt 0:02:51]} O-O {[%emt 0:09:36]} 8. Nge2 {[%emt 0:01:17]} Nd4 {[%emt 0:02:33]} 9. Rb1 {[%emt 0:05:27]} a6 {[%emt 0:09:19]} 10. O-O {[%emt 0:08:21]} d6 {[%emt 0:09:06]} 11. Nxd4 {[%emt 0:01:34]} cxd4 {[%emt 0:00:58]} 12. Ne2 {[%emt 0:00:28]} Rb8 {[%emt 0:05:09]} 13. Bf4 {[%emt 0:12:20]} e5 {[%emt 0:01:05]} 14. Bd2 {[%emt 0:00:23]} b5 {[%emt 0:01:05]} 15. b3 {[%emt 0:01:46]} Bd7 {[%emt 0:04:26]} 16. Bb4 {[%emt 0:01:47]} Qb6 {[%emt 0:06:59]} 17. Qd2 {[%emt 0:12:46]} Rfc8 {[%emt 0:05:52]} 18. f4 {[%emt 0:06:44]} Bg4 {[%emt 0:01:21]} 19. cxb5 {[%emt 0:02:58]} Bxe2 {[%emt 0:03:45]} 20. Qxe2 {[%emt 0:00:31]} a5 {[%emt 0:00:11]} 21. Bd2 {[%emt 0:04:36]} Qxb5 {[%emt 0:00:08]} 22. Rfc1 {[%emt 0:03:20]} Rxc1+ {[%emt 0:00:59]} 23. Bxc1 {[%emt 0:00:09]} Rc8 {[%emt 0:00:41]} 24. Bf1 {[%emt 0:00:32]} Rc3 {[%emt 0:01:45]} 25. Qd1 {[%emt 0:04:50]} a4 {[%emt 0:06:00]} 26. b4 {[%emt 0:00:37]} f5 {[%emt 0:01:23]} 27. fxe5 {[%emt 0:01:33]} dxe5 {[%emt 0:00:27]} 28. Bg5 {[%emt 0:00:55]} Nc8 {[%emt 0:07:09]} 29. exf5 {[%emt 0:01:11]} gxf5 {[%emt 0:00:17]} 30. Rc1 {[%emt 0:02:26]} Nd6 {[%emt 0:11:13]} 31. Bd2 {[%emt 0:01:05]} Rxa3 {[%emt 0:01:04]} 32. Rc5 {[%emt 0:02:13]} Qb6 {[%emt 0:01:44]} 33. Qc1 {[%emt 0:01:01]} Rb3 {[%emt 0:01:03]} 34. Rc6 {[%emt 0:00:20]} Qd8 {[%emt 0:01:41]} 35. Qc5 {[%emt 0:00:34]} Ne8 {[%emt 0:02:25]} 36. Qc4+ {[%emt 0:01:47]} Kh8 {[%emt 0:00:21]} 37. Qe6 {[%emt 0:02:11]} Nc7 {[%emt 0:00:47]} 38. Rxc7 {[%emt 0:01:17]} 1-0

[Event "36th German Seniors-ch-65 2024"]
[Site "Bad Wildungen"]
[Date "2024.08.26"]
[Round "4.6"]
[White "Schmidt, Gerhard"]
[Black "Chevelevitch, Evgueni"]
[Result "1-0"]
[ECO "C78"]
[WhiteElo "2088"]
[BlackElo "2334"]
[Annotator "RC"]
[PlyCount "75"]
[EventDate "2024.08.22"]
[EventType "swiss"]
[EventCountry "GER"]
[SourceTitle "playchess.com"]
[Source "ChessBase"]
[SourceQuality "1"]
[TimeControl "40/5400+30:1800+30"]

1. e4 {[%emt 0:00:09]} e5 {[%emt 0:00:08]} 2. Nf3 {[%emt 0:00:13]} Nc6 {[%emt 0:00:06]} 3. Bb5 {[%emt 0:00:12]} a6 {[%emt 0:00:13]} 4. Ba4 {[%emt 0:00:13]} Nf6 {[%emt 0:00:15]} 5. O-O {[%emt 0:00:25]} b5 {[%emt 0:01:51]} 6. Bb3 {[%emt 0:00:15]} Bc5 {[%emt 0:00:08]} 7. c3 {[%emt 0:01:05]} O-O {[%emt 0:00:18]} 8. d4 {[%emt 0:00:28]} Bb6 {[%emt 0:00:17]} 9. dxe5 {[%emt 0:10:48]} Nxe4 {[%emt 0:00:32]} 10. Bd5 {[%emt 0:08:34]} Nc5 {[%emt 0:00:47]} 11. Bg5 {[%emt 0:12:23]} Qe8 {[%emt 0:01:12]} 12. Re1 {[%emt 0:01:09]} Rb8 {[%emt 0:04:11]} 13. b4 {[%emt 0:05:22]} Ne6 {[%emt 0:00:27]} 14. Nbd2 {[%emt 0:05:37]} Ne7 {[%emt 0:18:39]} 15. Bb3 {[%emt 0:04:17]} h6 {[%emt 0:03:40]} 16. Bxh6 {[%emt 0:23:41]} gxh6 {[%emt 0:00:16]} 17. Ne4 {[%emt 0:00:17]} Qd8 {[%emt 0:10:56]} 18. Nf6+ {[%emt 0:01:12]} Kg7 {[%emt 0:02:55]} 19. Nh4 {[%emt 0:10:12]} d5 {[%emt 0:08:21]} 20. Nxd5 {[%emt 0:08:52]} Nxd5 {[%emt 0:00:49]} 21. Nf5+ {[%emt 0:00:28]} Kh7 {[%emt 0:05:45]} 22. Bxd5 {[%emt 0:00:10]} Nf4 {[%emt 0:15:43]} 23. Be4 {[%emt 0:00:22]} Qxd1 {[%emt 0:02:15]} 24. Raxd1 {[%emt 0:00:12]} Bxf5 {[%emt 0:02:50]} 25. Bxf5+ {[%emt 0:00:10]} Kg8 {[%emt 0:00:46]} 26. g3 {[%emt 0:01:02]} Ne6 {[%emt 0:00:08]} 27. Kg2 {[%emt 0:02:31]} Rfd8 {[%emt 0:01:39]} 28. f4 {[%emt 0:00:27]} Kf8 {[%emt 0:03:51]} 29. Kf3 {[%emt 0:00:37]} Ke7 {[%emt 0:00:55]} 30. Kg4 {[%emt 0:01:03]} Bf2 {[%emt 0:04:36]} 31. Rxd8 {[%emt 0:01:15]} Rxd8 {[%emt 0:00:19]} 32. Re2 {[%emt 0:00:07]} Bb6 {[%emt 0:02:48]} 33. Be4 {[%emt 0:00:26]} Rd1 {[%emt 0:01:57]} 34. Kh5 {[%emt 0:01:00]} Rc1 {[%emt 0:02:32]} 35. Bc2 {[%emt 0:00:25]} c5 {[%emt 0:01:14]} 36. f5 {[%emt 0:00:14]} Nc7 {[%emt 0:00:22]} 37. f6+ {[%emt 0:00:37]} Ke8 {[%emt 0:01:14]} 38. Kxh6 {[%emt 0:01:08]} 1-0

[Event "36th German Seniors-ch-65 2024"]
[Site "Bad Wildungen"]
[Date "2024.08.26"]
[Round "4.7"]
[White "Krueger, Wolfgang"]
[Black "Brueggemann, Joachim"]
[Result "0-1"]
[ECO "B30"]
[WhiteElo "2061"]
[BlackElo "2267"]
[Annotator "RC"]
[PlyCount "80"]
[EventDate "2024.08.22"]
[EventType "swiss"]
[EventCountry "GER"]
[SourceTitle "playchess.com"]
[Source "ChessBase"]
[SourceQuality "1"]
[TimeControl "40/5400+30:1800+30"]

1. e4 {[%emt 0:00:04]} c5 {[%emt 0:00:04]} 2. Nf3 {[%emt 0:00:10]} Nc6 {[%emt 0:00:04]} 3. Bb5 {[%emt 0:00:46]} e6 {[%emt 0:00:07]} 4. O-O {[%emt 0:00:15]} Nge7 {[%emt 0:00:10]} 5. Re1 {[%emt 0:01:49]} a6 {[%emt 0:00:26]} 6. Bf1 {[%emt 0:00:14]} d5 {[%emt 0:00:07]} 7. exd5 {[%emt 0:02:47]} Qxd5 {[%emt 0:00:07]} 8. Nc3 {[%emt 0:02:46]} Qd8 {[%emt 0:00:07]} 9. d3 {[%emt 0:01:51]} Nf5 {[%emt 0:00:18]} 10. Ne4 {[%emt 0:05:52]} Be7 {[%emt 0:00:11]} 11. c3 {[%emt 0:12:05]} b6 {[%emt 0:05:19]} 12. Bf4 {[%emt 0:11:26]} O-O {[%emt 0:02:46]} 13. h3 {[%emt 0:06:51]} Ra7 {[%emt 0:10:48]} 14. Qe2 {[%emt 0:06:11]} Rd7 {[%emt 0:07:15]} 15. a4 {[%emt 0:06:41]} a5 {[%emt 0:01:01]} 16. Ned2 {[%emt 0:05:06]} Ba6 {[%emt 0:15:46]} 17. Nc4 {[%emt 0:01:04]} Bxc4 {[%emt 0:05:00]} 18. dxc4 {[%emt 0:00:08]} Bd6 {[%emt 0:01:27]} 19. Bxd6 {[%emt 0:03:46]} Nxd6 {[%emt 0:10:03]} 20. Rad1 {[%emt 0:00:36]} Qe7 {[%emt 0:02:58]} 21. Ne5 {[%emt 0:10:55]} Nxe5 {[%emt 0:03:20]} 22. Qxe5 {[%emt 0:00:06]} Rfd8 {[%emt 0:00:18]} 23. Rd3 {[%emt 0:06:48]} Ne8 {[%emt 0:03:49]} 24. Red1 {[%emt 0:01:14]} Rxd3 {[%emt 0:00:31]} 25. Rxd3 {[%emt 0:00:06]} Rxd3 {[%emt 0:00:25]} 26. Bxd3 {[%emt 0:00:01]} Qd6 {[%emt 0:00:27]} 27. Qxd6 {[%emt 0:03:23]} Nxd6 {[%emt 0:00:02]} 28. f4 {[%emt 0:01:50]} h6 {[%emt 0:04:25]} 29. Kf2 {[%emt 0:01:36]} f5 {[%emt 0:06:16]} 30. Kf3 {[%emt 0:02:59]} Kf7 {[%emt 0:00:27]} 31. g4 {[%emt 0:00:49]} Kf6 {[%emt 0:06:36]} 32. h4 {[%emt 0:02:03]} fxg4+ {[%emt 0:10:43]} 33. Kxg4 {[%emt 0:00:09]} Nf5 {[%emt 0:00:38]} 34. Bxf5 {[%emt 0:04:10]} exf5+ {[%emt 0:00:06]} 35. Kg3 {[%emt 0:00:23]} Kg6 {[%emt 0:01:47]} 36. Kh3 {[%emt 0:00:37]} Kh5 {[%emt 0:00:15]} 37. Kg3 {[%emt 0:00:14]} g5 {[%emt 0:02:26]} 38. hxg5 {[%emt 0:00:37]} hxg5 {[%emt 0:00:05]} 39. fxg5 {[%emt 0:00:42]} Kxg5 {[%emt 0:00:06]} 40. Kf3 {[%emt 0:00:20]} Kf6 {[%emt 0:03:44]} 0-1